bitfinex/quotes_BTCUSD_20251217
["timestamp","ask_amount","ask_price","bid_price","bid_amount"]
[1765999223725,0.00261287,85916.0,85897.0,0.24447815]
[1765999223938,0.00261287,85916.0,85899.0,0.01164157]
[1765999224141,0.00161287,85916.0,85900.0,0.07545112]
[1765999224554,0.00161287,85916.0,85900.0,0.06148139]
[1765999225093,0.00261287,85916.0,85900.0,0.06148139]
[1765999225247,0.00261287,85916.0,85900.0,0.07312283]
[1765999225440,0.00161287,85916.0,85900.0,0.07312283]
[1765999225642,0.00261287,85916.0,85893.0,0.11997985]
[1765999226029,0.47842,85908.0,85893.0,0.05001839]
[1765999226229,0.72492,85907.0,85893.0,0.05001839]
[1765999226348,0.72492,85907.0,85894.0,0.00686584]
[1765999226757,0.47842,85906.0,85894.0,0.00686584]
[1765999227129,0.72492,85907.0,85894.0,0.00686584]
[1765999227690,0.00261287,85916.0,85894.0,0.00686584]
[1765999228060,0.00161287,85916.0,85894.0,0.00686584]
[1765999228260,0.00161287,85916.0,85895.0,0.00755242]
[1765999229119,0.00261287,85916.0,85895.0,0.00755242]
[1765999229359,0.00261287,85916.0,85899.0,0.1]
[1765999229551,0.47842,85914.0,85899.0,0.1]
[1765999229762,1.20334,85911.0,85899.0,0.1]
[1765999229968,0.72207779,85910.0,85877.0,0.01164456]
[1765999230179,0.72207779,85910.0,85886.0,0.01164334]
[1765999230180,0.01864,85910.0,85886.0,0.01164334]
[1765999230394,1.20334,85909.0,85881.0,0.0907]
[1765999230655,1.20334,85909.0,85883.0,0.01864]
[1765999230862,1.20334,85909.0,85884.0,0.11546078]
[1765999231077,0.72492,85909.0,85890.0,0.01164279]
[1765999231273,0.01864,85913.0,85889.0,0.14586839]
[1765999231490,1.22198,85913.0,85889.0,0.14586839]
[1765999231731,1.22198,85913.0,85883.0,0.25151344]
[1765999231732,0.01864,85913.0,85885.0,0.05001839]
[1765999231948,0.01864,85913.0,85887.0,0.05001839]
[1765999232321,0.72492,85910.0,85887.0,0.05001839]
[1765999232498,0.01864,85913.0,85887.0,0.05001839]
[1765999232499,0.47842,85907.0,85887.0,0.05001839]
[1765999232707,0.72492,85906.0,85887.0,0.05001839]
[1765999233307,0.47842,85911.0,85888.0,0.01864]
[1765999233514,0.47842,85907.0,85888.0,0.01864]
[1765999233859,0.72492,85902.0,85881.0,0.05001839]
[1765999234039,1.20334,85900.0,85882.0,0.01864]
[1765999234544,0.0907,85911.0,85879.0,0.05027576]
[1765999234677,0.72492,85909.0,85881.0,0.47175839]
[1765999234890,0.01090052,85908.0,85882.0,0.51759]
[1765999235244,0.01090052,85908.0,85884.0,0.42174]
[1765999235380,0.001,85900.0,85884.0,0.42174]
[1765999235585,0.01090052,85908.0,85884.0,0.42174]
[1765999235800,0.01090052,85908.0,85885.0,0.01864]
[1765999236003,0.01190052,85908.0,85885.0,0.01864]
[1765999236205,0.01190052,85908.0,85886.0,0.04274843]
[1765999236627,0.49032052,85908.0,85886.0,0.04274843]
[1765999236798,0.73582052,85907.0,85886.0,0.04274843]
[1765999237002,0.01090052,85906.0,85886.0,0.04274843]
[1765999237403,0.01864,85913.0,85889.0,0.51759]
[1765999237631,0.01864,85913.0,85889.0,0.76208907]
[1765999237632,0.0109023,85912.0,85889.0,0.76208907]
[1765999237960,0.0109023,85912.0,85901.0,0.51759]
[1765999238153,0.00161287,85916.0,85901.0,0.51759]
[1765999238789,0.001,85913.0,85901.0,0.51759]
[1765999239008,0.00161287,85916.0,85902.0,0.06061915]
[1765999239635,0.00161287,85916.0,85902.0,0.4813985]
[1765999241380,0.00161287,85916.0,85903.0,0.01864]
[1765999242763,0.00161287,85916.0,85889.0,0.05001839]
[1765999242961,0.72207779,85913.0,85889.0,0.01864]
[1765999243179,0.69277,85908.0,85889.0,0.01864]
[1765999243321,0.01090183,85907.0,85889.0,0.01864]
[1765999243711,1.19300183,85906.0,85889.0,0.01864]
[1765999243911,0.01090183,85905.0,85889.0,0.01864]
[1765999244107,0.01090183,85905.0,85903.0,0.001]
[1765999244307,1.1821,85904.0,85903.0,0.001]
[1765999244559,1.1821,85904.0,85889.0,0.01864]
[1765999244560,0.48933,85903.0,85889.0,0.01864]
[1765999244773,0.11546078,85904.0,85889.0,0.001]
[1765999244774,0.69277,85895.0,85889.0,0.001]
[1765999244985,0.69277,85889.0,85867.0,0.01864]
[1765999245143,0.69277,85885.0,85868.0,0.05001839]
[1765999245345,0.69277,85884.0,85867.0,0.01864]
[1765999245546,1.1821,85884.0,85867.0,0.01864]
[1765999245775,0.01864,85893.0,85867.0,0.01864]
[1765999245979,0.01090729,85892.0,85867.0,0.01864]
[1765999246290,0.69277,85887.0,85862.0,0.05001839]
[1765999246521,0.01864,85893.0,85867.0,0.06996146]
[1765999246522,0.01090729,85886.0,85867.0,0.06996146]
[1765999246836,0.01090729,85885.0,85867.0,0.06996146]
[1765999247451,0.01864,85893.0,85869.0,0.42199]
[1765999247635,0.01090076,85892.0,85869.0,0.42199]
[1765999249276,0.01090076,85892.0,85876.0,0.42199]
[1765999249479,0.0907,85897.0,85867.0,0.08160737]
[1765999249480,0.0907,85897.0,85877.0,0.56220354]
[1765999249712,0.01089743,85896.0,85877.0,0.56220354]
[1765999250137,0.01089743,85896.0,85877.0,0.51884]
[1765999250338,0.01089743,85896.0,85873.0,0.01864]
[1765999250638,0.69277,85893.0,85874.0,0.01864]
[1765999250836,1.1821,85889.0,85874.0,0.01864]
[1765999251238,0.69277,85886.0,85867.0,0.01864]
[1765999251460,1.1821,85884.0,85868.0,0.06996146]
[1765999251710,0.48933,85892.0,85868.0,0.06996146]
[1765999251856,0.01089568,85891.0,85868.0,0.06996146]
[1765999252077,1.19299568,85891.0,85868.0,0.06996146]
[1765999252327,0.07409107,85897.0,85868.0,0.06996146]
[1765999252328,1.30845646,85890.0,85868.0,0.06996146]
[1765999252532,0.01089568,85889.0,85868.0,0.06996146]
[1765999252732,0.001,85884.0,85868.0,0.06996146]
[1765999252962,0.001,85884.0,85864.0,0.01864]
[1765999253219,0.07409107,85897.0,85865.0,0.06996146]
[1765999253452,0.69277,85894.0,85866.0,0.12415844]
[1765999253656,0.01089311,85893.0,85866.0,0.06996146]
[1765999253856,0.69277,85890.0,85866.0,0.06996146]
[1765999254059,0.01089311,85889.0,85865.0,0.01864]
[1765999254179,1.1821,85883.0,85864.0,0.01864]
[1765999254387,1.1821,85883.0,85865.0,0.05001839]
[1765999254867,1.01808006,85883.0,85865.0,0.05001839]
[1765999255075,0.48933,85889.0,85865.0,0.05001839]
[1765999255298,0.48933,85887.0,85864.0,0.05874984]
[1765999255503,0.48933,85885.0,85863.0,0.05001839]
[1765999255721,0.48933,85883.0,85863.0,0.05001839]
[1765999256142,0.48933,85881.0,85858.0,0.05001839]
[1765999256557,0.48933,85881.0,85857.0,0.01864]
[1765999256558,0.48933,85881.0,85860.0,0.05001839]
[1765999256772,0.48933,85881.0,85861.0,0.08422184]
[1765999256979,0.69277,85886.0,85865.0,0.68286]
[1765999257194,0.01088922,85885.0,85866.0,0.05001839]
[1765999257426,0.001,85889.0,85866.0,0.05001839]
[1765999257647,0.01088775,85890.0,85870.0,0.68286]
[1765999257854,0.01088775,85890.0,85871.0,0.06558771]
[1765999258272,0.48933,85887.0,85866.0,0.01864]
[1765999258490,0.01088775,85889.0,85866.0,0.01864]
[1765999258491,0.48933,85885.0,85866.0,0.01864]
[1765999259536,0.01864,85894.0,85866.0,0.01864]
[1765999259537,0.01864,85896.0,85870.0,0.42199]
[1765999259747,0.01088752,85895.0,85874.0,0.68286]
[1765999260176,0.0907,85894.0,85874.0,0.68286]
[1765999260376,0.01088752,85893.0,85874.0,0.26087]
[1765999260585,0.78347,85891.0,85867.0,0.05001839]
[1765999260795,0.48933,85886.0,85867.0,0.05001839]
[1765999261002,0.48933,85889.0,85866.0,0.01864]
[1765999261223,0.48933,85885.0,85866.0,0.01864]
[1765999261429,0.00161287,85889.0,85868.0,0.23291545]
[1765999261642,0.69277,85897.0,85874.0,0.42199]
[1765999261643,0.01088735,85895.0,85874.0,0.42199]
[1765999261853,0.05808204,85928.0,85870.0,0.73391624]
[1765999261854,0.02931024,85909.0,85898.0,0.23283335]
[1765999262073,0.02931024,85909.0,85897.0,0.01164185]
[1765999262074,0.02931024,85909.0,85899.0,0.03841741]
[1765999262285,0.02931024,85909.0,85899.0,0.02444752]
[1765999262517,0.01864,85925.0,85900.0,0.39268]
[1765999262734,0.01864,85925.0,85902.0,0.01164117]
[1765999262735,1.1821,85923.0,85902.0,0.01164117]
[1765999262946,0.01088276,85922.0,85907.0,0.01164049]
[1765999263154,1.1821,85923.0,85904.0,0.08160236]
[1765999263363,0.00161287,85925.0,85909.0,0.01164022]
[1765999263582,0.00161287,85925.0,85906.0,0.70356839]
[1765999265101,0.00161287,85925.0,85908.0,0.05001839]
[1765999265323,0.00161287,85925.0,85911.0,0.05001839]
[1765999265755,0.72227073,85921.0,85900.0,0.01864]
[1765999265968,0.00161287,85925.0,85895.0,0.05001839]
[1765999266184,0.69277,85920.0,85895.0,0.05001839]
[1765999266391,0.69277,85918.0,85897.0,0.05001839]
[1765999266596,0.69277,85918.0,85899.0,0.05001839]
[1765999267015,1.1821,85918.0,85899.0,0.05001839]
[1765999267220,0.00161287,85925.0,85899.0,0.01864]
[1765999267427,0.72227073,85920.0,85900.0,0.05078156]
[1765999267648,1.1821,85919.0,85900.0,0.06942156]
[1765999267861,0.48933,85919.0,85900.0,0.05078156]
[1765999268098,0.69277,85909.0,85890.0,0.01864]
[1765999268320,0.48933,85909.0,85890.0,0.01864]
[1765999268776,0.48933,85909.0,85886.0,0.05001839]
[1765999268995,0.48933,85909.0,85888.0,0.01864]
[1765999269210,0.48933,85909.0,85889.0,0.11546078]
[1765999270619,1.19315,85908.0,85889.0,0.11546078]
[1765999271029,0.0907,85917.0,85889.0,0.11546078]
[1765999271236,1.17797,85915.0,85889.0,0.11546078]
[1765999271445,0.70531,85913.0,85892.0,0.26087]
[1765999271696,0.0907,85917.0,85894.0,0.01164225]
[1765999271899,0.70531,85923.0,85902.0,0.06165956]
[1765999272106,0.01087831,85922.0,85903.0,0.08860146]
[1765999272317,0.70531,85923.0,85908.0,0.01164035]
[1765999272537,0.00161287,85925.0,85912.0,0.01163981]
[1765999272786,0.0285404,85938.0,85922.0,0.01163846]
[1765999273000,0.0285404,85938.0,85913.0,0.01864]
[1765999273001,1.19493073,85932.0,85895.0,0.03132039]
[1765999273204,1.17797,85925.0,85904.0,0.01864]
[1765999273409,0.70531,85927.0,85905.0,0.06996146]
[1765999273619,0.72227073,85932.0,85905.0,0.06996146]
[1765999273620,1.17797,85924.0,85905.0,0.06996146]
[1765999273833,0.72227073,85920.0,85905.0,0.00699615]
[1765999274044,0.72227073,85920.0,85886.0,0.66419334]
[1765999274045,0.0907,85914.0,85877.0,0.06996146]
[1765999274272,0.01087631,85913.0,85877.0,0.08860146]
[1765999274475,0.01087631,85913.0,85878.0,0.14071839]
[1765999274476,0.47266,85909.0,85878.0,0.14071839]
[1765999274684,0.70531,85904.0,85880.0,0.05001839]
[1765999274896,0.70531,85902.0,85882.0,0.26087]
[1765999275354,0.0907,85914.0,85892.0,0.23284973]
[1765999275355,0.79601,85914.0,85892.0,0.23284973]
[1765999275561,0.79601,85914.0,85891.0,0.01164266]
[1765999275562,0.002,85913.0,85896.0,0.01164198]
[1765999275774,0.70531,85914.0,85903.0,0.24446037]
[1765999275985,0.01864,85920.0,85908.0,0.01164035]
[1765999276193,0.4913,85927.0,85907.0,0.01164049]
[1765999276438,0.01864,85927.0,85911.0,0.24443848]
[1765999276646,0.01864,85927.0,85912.0,0.03600904]
[1765999277043,0.70531,85933.0,85912.0,0.03600904]
[1765999277274,1.17797,85932.0,85912.0,0.04764885]
[1765999277484,1.17797,85932.0,85914.0,0.01163954]
[1765999277696,0.0020005,85934.0,85915.0,0.01163941]
[1765999277910,0.0020005,85934.0,85920.0,0.06165712]
[1765999278128,0.0020005,85934.0,85923.0,0.24440352]
[1765999278310,0.0020005,85934.0,85924.0,0.01163819]
[1765999278548,5e-07,85934.0,85928.0,0.38968]
[1765999278756,5e-07,85934.0,85928.0,0.65055]
[1765999278971,5e-07,85934.0,85930.0,0.38968]
[1765999279195,5e-07,85934.0,85929.0,0.03289735]
[1765999279196,0.70531,85962.0,85940.0,0.01163602]
[1765999279410,0.70531,85962.0,85931.0,0.01396469]
[1765999279411,0.47266,85978.0,85950.0,0.01163467]
[1765999279623,0.4913,85973.0,85952.0,0.05001839]
[1765999279823,0.47266,85971.0,85952.0,0.05001839]
[1765999280048,1.17797,85970.0,85952.0,0.05001839]
[1765999280279,1.17958287,85970.0,85952.0,0.05001839]
[1765999280453,1.17958287,85970.0,85953.0,0.01157621]
[1765999281107,0.70692287,85970.0,85953.0,0.01157621]
[1765999281505,0.00161287,85970.0,85957.0,0.06850846]
[1765999281736,0.00176693,85981.0,85965.0,0.01163264]
[1765999281939,0.00176693,85981.0,85962.0,0.64894]
[1765999282067,0.72227073,85980.0,85963.0,0.07609658]
[1765999282271,0.00176693,85981.0,85943.0,0.01163561]
[1765999282272,0.72227073,85973.0,85943.0,0.01163561]
[1765999282609,0.70531,85970.0,85953.0,0.001]
[1765999282910,0.70531,85970.0,85953.0,0.00261]
[1765999283860,0.70531,85970.0,85953.0,0.00161]
[1765999284119,0.72227073,85980.0,85962.0,0.001]
[1765999284120,1.17797,85980.0,85962.0,0.001]
[1765999284334,0.0907,85999.0,85962.0,0.001]
[1765999284335,6.79158427,86000.0,85988.0,0.05001839]
[1765999284599,6.79158427,86000.0,85989.0,0.04968884]
[1765999284797,6.79158427,86000.0,85989.0,0.05129884]
[1765999285176,0.00028898,85990.0,85989.0,0.05129884]
[1765999285790,0.00028898,85990.0,85976.0,0.06996146]
[1765999286137,1.17797,85993.0,85977.0,0.0186]
[1765999286355,0.00025687,85989.0,85977.0,0.0186]
[1765999286790,0.00025687,85989.0,85977.0,0.02021]
[1765999286998,0.00025687,85989.0,85980.0,0.06996146]
[1765999287205,6.79158427,86000.0,85980.0,0.06996146]
[1765999287206,6.6030909,86000.0,85980.0,0.06996146]
[1765999287404,7.0757509,86000.0,85981.0,0.0186]
[1765999288403,7.0767509,86000.0,85982.0,0.05001839]
[1765999288606,6.6030909,86000.0,85983.0,0.0116302]
[1765999288987,6.6030909,86000.0,85988.0,0.06996146]
[1765999289212,6.6040909,86000.0,85990.0,0.01162925]
[1765999289548,6.6040909,86000.0,85989.0,0.05001839]
[1765999289746,6.6040909,86000.0,85993.0,0.31062839]
[1765999290916,6.6040909,86000.0,85989.0,0.00161]
[1765999290917,6.6030909,86000.0,85995.0,0.05001839]
[1765999291052,6.6030909,86000.0,85996.0,0.00802476]
[1765999291605,5.41288917,86000.0,85999.0,1.05162839]
[1765999291823,4.98388917,86000.0,85999.0,1.05162839]
[1765999292038,4.98388917,86000.0,85999.0,0.05162839]
[1765999292201,4.98388917,86000.0,85999.0,0.05001839]
[1765999293799,4.98388917,86000.0,85999.0,0.05201839]
[1765999294003,5.07458917,86000.0,85999.0,0.002]
[1765999294208,0.0907,85999.0,85991.0,0.05001839]
[1765999294611,4.88286233,86000.0,85991.0,0.05001839]
[1765999294805,4.88286233,86000.0,85989.0,0.05001839]
[1765999295011,4.88286233,86000.0,85999.0,0.001]
[1765999295446,4.88286233,86000.0,85999.0,0.05001839]
[1765999295795,4.88286233,86000.0,85999.0,0.00161]
[1765999296008,4.88286233,86000.0,85998.0,0.05001839]
[1765999296175,4.88286233,86000.0,85995.0,0.05001839]
[1765999296377,4.88286233,86000.0,85992.0,0.05001839]
[1765999297031,4.88286233,86000.0,85982.0,0.01163034]
[1765999297032,4.88286233,86000.0,85989.0,0.05001839]
[1765999297378,4.88286233,86000.0,85995.0,0.002]
[1765999297580,4.88286233,86000.0,85989.0,0.06325778]
[1765999297827,4.88286233,86000.0,85989.0,0.05162839]
[1765999298654,4.88286233,86000.0,85998.0,0.05001839]
[1765999298655,0.0186,85999.0,85998.0,0.05001839]
[1765999299666,0.0186,85999.0,85998.0,0.05162839]
[1765999300016,4.20757769,86000.0,85999.0,0.28257923]
[1765999300223,4.14187805,86000.0,85999.0,0.28418923]
[1765999300425,3.44746294,86000.0,85999.0,1.28418923]
[1765999300639,3.23864211,86000.0,85999.0,1.28418923]
[1765999300863,2.8158137,86000.0,85999.0,1.28418923]
[1765999301068,2.74065395,86000.0,85999.0,1.28418923]
[1765999301268,2.60067647,86000.0,85999.0,1.28618923]
[1765999301669,1.55655359,86000.0,85999.0,1.28418923]
[1765999301909,1.39414329,86000.0,85999.0,1.38418923]
[1765999302064,1.12180712,86000.0,85999.0,1.39018923]
[1765999302260,0.80447428,86000.0,85999.0,1.39018923]
[1765999302463,0.76947428,86000.0,85999.0,1.39018923]
[1765999302661,0.56367186,86000.0,85999.0,1.39018923]
[1765999302872,0.33241948,86000.0,85999.0,1.39018923]
[1765999303251,1e-08,86001.0,86000.0,0.05001839]
[1765999303499,1e-08,86001.0,86000.0,1.06558187]
[1765999303702,1e-08,86005.0,86004.0,0.28256571]
[1765999303900,0.05840383,86073.0,86004.0,0.28256571]
[1765999303901,1e-08,86011.0,86010.0,1.28254949]
[1765999304145,1e-08,86011.0,86010.0,1.28415949]
[1765999304354,0.50281,86061.0,86010.0,1.28415949]
[1765999304355,1e-08,86013.0,86010.0,1.35412095]
[1765999304579,0.0186,86037.0,86030.0,1.00161]
[1765999304784,0.009,86037.0,86035.0,0.05001839]
[1765999304983,0.009,86037.0,86035.0,0.00161]
[1765999305341,0.009,86037.0,86036.0,0.05001839]
[1765999305729,0.009,86037.0,86036.0,0.00161]
[1765999306463,0.05818978,86079.0,86036.0,0.00161]
[1765999306464,0.00199998,86100.0,86037.0,0.05001839]
[1765999306672,0.50281,86077.0,86049.0,0.06163967]
[1765999307010,0.01079208,86076.0,86049.0,0.00161]
[1765999307307,1.05647557,86070.0,86034.0,0.05001839]
[1765999307508,0.0907,86077.0,86041.0,0.05001839]
[1765999307748,0.01079789,86076.0,86041.0,0.05162839]
[1765999307943,0.0907,86068.0,86041.0,0.05162839]
[1765999308076,0.0907,86062.0,86041.0,0.00161]
[1765999308284,0.77911,86058.0,86041.0,0.00161]
[1765999308647,0.0907,86056.0,86041.0,0.00161]
[1765999308766,0.0907,86055.0,86041.0,0.00161]
[1765999308974,0.0186,86057.0,86041.0,0.00161]
[1765999309270,0.0907,86053.0,86041.0,0.00161]
[1765999309407,0.1093,86057.0,86041.0,0.00161]
[1765999309748,0.0907,86053.0,86041.0,0.00161]
[1765999310042,0.0907,86053.0,86025.0,0.01162452]
[1765999310043,0.50281,86056.0,86025.0,0.05001839]
[1765999310244,0.0907,86044.0,86030.0,0.00161]
[1765999310443,0.0186,86043.0,86031.0,0.05001839]
[1765999310708,0.0186,86043.0,86010.0,0.06996146]
[1765999310709,0.68841,86041.0,86010.0,0.06996146]
[1765999310907,0.0186,86043.0,86010.0,0.00161]
[1765999310908,0.68841,86025.0,86010.0,0.00161]
[1765999311179,0.50281,86021.0,86010.0,0.00161]
[1765999311337,0.0186,86020.0,86010.0,0.00161]
[1765999311544,0.0186,86019.0,85978.0,0.03132039]
[1765999311908,0.0186,86019.0,85975.0,0.06996146]
[1765999311909,0.0907,86006.0,85977.0,0.01163101]
[1765999312109,0.0186,86005.0,85988.0,0.00161]
[1765999312398,1.19122,86000.0,85988.0,0.00161]
[1765999312618,1.28192,85999.0,85988.0,0.00161]
[1765999312837,0.01083255,85998.0,85951.0,0.23268933]
[1765999313026,0.0907,85994.0,85950.0,0.10161]
[1765999313158,0.01083255,85993.0,85953.0,0.01163426]
[1765999313360,0.0907,85990.0,85955.0,0.01163399]
[1765999313594,0.59351,85983.0,85958.0,0.01163358]
[1765999313939,0.77911,85981.0,85958.0,0.01163358]
[1765999314157,0.0907,85981.0,85954.0,0.08159558]
[1765999314326,0.0907,85974.0,85955.0,0.01163399]
[1765999314486,0.0907,85974.0,85956.0,0.01163385]
[1765999314487,0.0186,85973.0,85956.0,0.01163385]
[1765999314695,0.0186,85973.0,85955.0,0.01163399]
[1765999314919,0.0186,85973.0,85954.0,0.06996146]
[1765999315276,0.0186,85973.0,85964.0,0.01163277]
[1765999315559,0.0186,85973.0,85966.0,0.0116325]
[1765999315767,0.0186,85973.0,85958.0,0.10161]
[1765999315929,0.0186,85973.0,85964.0,0.01163277]
[1765999316128,0.0186,85973.0,85958.0,0.11324358]
[1765999316330,0.0186,85973.0,85958.0,0.01163358]
[1765999316552,0.0186,85973.0,85957.0,0.01163372]
[1765999316755,0.0186,85973.0,85955.0,0.05001839]
[1765999317077,0.0186,85973.0,85925.0,0.10161]
[1765999317078,0.0907,85969.0,85925.0,0.10161]
[1765999317286,0.68841,85964.0,85926.0,0.01163792]
[1765999317492,0.68841,85964.0,85924.0,0.05001839]
[1765999317493,0.00161287,85964.0,85924.0,0.05001839]
[1765999317713,0.50281,85961.0,85929.0,0.23274833]
[1765999317925,0.0186,85960.0,85925.0,0.24439799]
[1765999318116,1.19122,85957.0,85923.0,0.01163832]
[1765999318320,1.19122,85957.0,85934.0,0.01163683]
[1765999318321,0.0907,85953.0,85934.0,0.01163683]
[1765999318639,0.09231287,85953.0,85932.0,0.0116371]
[1765999318836,0.09231287,85953.0,85936.0,0.01163656]
[1765999319042,0.09231287,85953.0,85935.0,0.23273362]
[1765999319043,0.09231287,85953.0,85933.0,0.01163697]
[1765999319272,0.09231287,85953.0,85935.0,0.0116367]
[1765999319489,0.0186,85952.0,85939.0,0.31431877]
[1765999319672,0.0186,85951.0,85939.0,0.06996146]
[1765999320495,0.0186,85951.0,85939.0,0.08159762]
[1765999320694,0.0186,85951.0,85928.0,0.01163765]
[1765999320912,0.50281,85948.0,85918.0,1.0]
[1765999321068,0.59351,85938.0,85914.0,1.0]
[1765999321274,0.0186,85937.0,85920.0,0.01163873]
[1765999321467,0.0186,85937.0,85921.0,0.01163859]
[1765999321652,0.0186,85937.0,85920.0,0.01163873]
[1765999321863,0.0186,85937.0,85917.0,0.24442019]
[1765999322082,0.0186,85937.0,85917.0,0.01163914]
[1765999322287,0.0186,85937.0,85920.0,0.23277465]
[1765999322496,0.0186,85937.0,85924.0,0.06996146]
[1765999322710,0.0186,85937.0,85928.0,0.001]
[1765999322917,0.0186,85936.0,85928.0,0.00015702]
[1765999323290,0.0186,85935.0,85927.0,0.01163778]
[1765999323416,0.0186,85934.0,85927.0,0.01163778]
[1765999323617,0.00999,85934.0,85926.0,0.06441]
[1765999324054,0.00999,85934.0,85926.0,0.07604792]
[1765999324255,0.00999,85934.0,85928.0,0.01163765]
[1765999324436,0.00999,85934.0,85924.0,0.08159965]
[1765999324640,0.00999,85934.0,85927.0,0.01163778]
[1765999324879,0.0907,85948.0,85930.0,0.01163737]
[1765999325066,0.0186,85947.0,85930.0,0.01163737]
[1765999325267,0.0186,85948.0,85940.0,0.01163602]
[1765999325473,0.0186,85948.0,85937.0,0.06996146]
[1765999325672,0.0186,85948.0,85937.0,0.08159789]
[1765999325922,0.0186,85948.0,85937.0,0.06996146]
[1765999326482,0.0186,85948.0,85938.0,0.01163629]
[1765999326678,0.0186,85948.0,85942.0,0.23271455]
[1765999326885,0.0186,85948.0,85937.0,0.06996146]
[1765999327080,0.0186,85948.0,85944.0,0.01163548]
[1765999327337,0.68841,85967.0,85937.0,0.08159789]
[1765999327338,0.50281,85977.0,85956.0,0.01163385]
[1765999327482,0.50281,85986.0,85962.0,0.01163304]
[1765999327689,0.50281,85994.0,85972.0,0.01163169]
[1765999328034,0.1093,85993.0,85966.0,0.23264831]
[1765999328237,0.1093,85993.0,85965.0,0.01163264]
[1765999328238,0.1093,85993.0,85962.0,0.05001839]
[1765999328390,0.0907,85999.0,85961.0,0.06996146]
[1765999328599,0.0907,85988.0,85962.0,0.01163304]
[1765999328798,0.68841,85985.0,85962.0,0.01163304]
[1765999329068,0.68841,85983.0,85961.0,0.06996146]
[1765999329199,0.50281,85982.0,85961.0,0.06996146]
[1765999329399,0.51035,85978.0,85961.0,0.06996146]
[1765999329654,0.52895,85977.0,85961.0,0.06996146]
[1765999329858,0.0186,85977.0,85964.0,0.01163277]
[1765999330083,0.51035,85986.0,85970.0,0.01163196]
[1765999330288,0.0186,85977.0,85963.0,0.2442889]
[1765999330465,0.0186,85977.0,85961.0,0.06996146]
[1765999331249,0.51035,85979.0,85961.0,0.06996146]
[1765999331414,0.0186,85976.0,85961.0,0.06996146]
[1765999331626,0.0186,85976.0,85962.0,0.01163304]
[1765999331828,0.0186,85978.0,85964.0,0.07967]
[1765999331970,0.0186,85978.0,85966.0,0.0116325]
[1765999332157,0.0186,85978.0,85968.0,0.01163223]
[1765999332354,0.0186,85978.0,85971.0,0.01163182]
[1765999332575,0.0186,85978.0,85970.0,0.01163196]
[1765999332787,0.0186,85978.0,85967.0,0.01163237]
[1765999332993,0.0186,85978.0,85974.0,0.01163142]
[1765999333189,0.00161287,85989.0,85966.0,0.0116325]
[1765999333397,0.00161287,85989.0,85964.0,0.09130277]
[1765999333398,0.0186,85982.0,85968.0,0.1]
[1765999333818,0.0186,85982.0,85968.0,0.11163223]
[1765999334238,0.0186,85982.0,85969.0,0.01163209]
[1765999334436,0.0186,85982.0,85975.0,0.01163128]
[1765999334643,0.09269823,86004.0,85981.0,0.01163047]
[1765999334953,1.22596,86003.0,85977.0,0.06107]
[1765999335145,0.58512,86001.0,85977.0,0.06107]
[1765999335300,0.0907,85999.0,85977.0,0.06107]
[1765999335920,0.0907,85999.0,85981.0,0.06996146]
[1765999336669,0.0907,85999.0,85966.0,0.23264996]
[1765999336834,0.01159111,85999.0,85965.0,0.29372153]
[1765999337033,0.0186,86003.0,85974.0,0.06996146]
[1765999337358,0.71294,85998.0,85974.0,0.06996146]
[1765999337578,0.0186,86003.0,85974.0,0.06996146]
[1765999337579,1.20736,85994.0,85974.0,0.06996146]
[1765999337782,0.0907,86001.0,85968.0,0.1]
[1765999337979,0.0186,86003.0,85968.0,0.1]
[1765999337980,0.0927,85999.0,85968.0,0.1]
[1765999338301,0.11546078,85998.0,85968.0,0.1]
[1765999338516,0.71294,85995.0,85968.0,0.1]
[1765999338821,0.71294,85989.0,85968.0,0.1]
[1765999338953,0.49442,85987.0,85968.0,0.1]
[1765999339362,0.49442,85987.0,85975.0,0.06996146]
[1765999339685,0.49442,85987.0,85968.0,0.1]
[1765999340360,0.49442,85987.0,85969.0,0.24427272]
[1765999340747,0.49442,85987.0,85970.0,0.01163196]
[1765999340980,0.49442,85987.0,85968.0,0.102]
[1765999341221,0.73154,85988.0,85968.0,0.102]
[1765999341222,0.0907,85986.0,85968.0,0.102]
[1765999341433,0.49442,85978.0,85968.0,0.102]
[1765999341639,0.0186,85977.0,85968.0,0.1]
[1765999342061,0.49442,85975.0,85955.0,0.01163399]
[1765999342475,0.49442,85975.0,85961.0,0.01163318]
[1765999342680,0.49442,85975.0,85956.0,0.23267563]
[1765999342819,0.49442,85975.0,85956.0,0.24431009]
[1765999343020,0.49442,85975.0,85956.0,0.01163385]
[1765999343284,0.71294,85972.0,85959.0,0.01163345]
[1765999343466,1.20736,85971.0,85959.0,0.01163345]
[1765999343640,1.20736,85971.0,85960.0,0.01163331]
[1765999343819,1.20736,85971.0,85961.0,0.01163318]
[1765999344034,1.20736,85976.0,85957.0,0.01163372]
[1765999344229,0.71294,85976.0,85957.0,0.01163372]
[1765999344447,0.0186,85977.0,85959.0,0.23266895]
[1765999344669,0.71294,85976.0,85963.0,0.01163291]
[1765999344918,0.71294,85972.0,85959.0,0.01163345]
[1765999345127,1.20736,85972.0,85960.0,0.23266387]
[1765999345370,0.71294,86005.0,85975.0,0.01163128]
[1765999345568,0.80364,85996.0,85969.0,0.07270209]
[1765999345772,0.0907,85993.0,85973.0,0.01163155]
[1765999346014,0.0907,86001.0,85971.0,0.01163182]
[1765999346194,0.0907,85996.0,85971.0,0.01163182]
[1765999346432,0.0907,85993.0,85971.0,0.24426794]
[1765999346632,0.0907,85990.0,85969.0,0.01163209]
[1765999346757,0.0186,85989.0,85970.0,0.01163196]
[1765999346960,0.49442,85984.0,85966.0,0.0116325]
[1765999347186,0.49442,85984.0,85968.0,0.01163223]
[1765999347452,0.0907,85987.0,85977.0,0.06996146]
[1765999347655,0.0186,85989.0,85978.0,0.01395705]
[1765999348111,0.0186,85989.0,85977.0,0.06996146]
[1765999348320,0.51302,85989.0,85977.0,0.01163101]
[1765999348516,0.001,85987.0,85975.0,0.23262332]
[1765999348739,0.001,85987.0,85977.0,0.06996146]
[1765999349270,1.05727018,86010.0,85977.0,0.06996146]
[1765999349271,0.0186,86001.0,85981.0,0.01163047]
[1765999349416,0.0186,86001.0,85984.0,0.01163007]
[1765999349615,0.0186,86001.0,85993.0,0.01162885]
[1765999349845,0.0186,86001.0,85992.0,0.01162898]